[Event "Late-Titled-Tuesday-Blitz-April-30-2024"]
[Site "Chess.com"]
[Date "2024.04.30"]
[Round "11"]
[White "rionelG"]
[Black "ATM622"]
[Result "0-1"]
[WhiteElo "2274"]
[BlackElo "2490"]
[TimeControl "180+1"]
[EndTime "16:02:17 PDT"]
[Termination "ATM622 won on time"]

1. e4 {[%clk 0:02:09.3]} 1... c6 {[%clk 0:02:59.3]} 2. d4 {[%clk 0:02:08.6]}
2... d5 {[%clk 0:02:58.6]} 3. e5 {[%clk 0:02:08.9]} 3... Bf5 {[%clk 0:02:57.6]}
4. Nf3 {[%clk 0:02:09]} 4... e6 {[%clk 0:02:57.3]} 5. Be2 {[%clk 0:02:09.1]}
5... Ne7 {[%clk 0:02:56.8]} 6. O-O {[%clk 0:02:09.2]} 6... Nd7 {[%clk
0:02:55.4]} 7. Nbd2 {[%clk 0:02:08.7]} 7... c5 {[%clk 0:02:54.3]} 8. c4 {[%clk
0:02:08.3]} 8... Rc8 {[%clk 0:02:40.3]} 9. dxc5 {[%clk 0:01:50.6]} 9... Nxc5
{[%clk 0:02:39.3]} 10. cxd5 {[%clk 0:01:47.8]} 10... Nxd5 {[%clk 0:02:33.3]} 11.
Bb5+ {[%clk 0:01:46.2]} 11... Nd7 {[%clk 0:02:31.1]} 12. Nc4 {[%clk 0:01:38.8]}
12... a6 {[%clk 0:02:28.3]} 13. Bxd7+ {[%clk 0:01:37.9]} 13... Qxd7 {[%clk
0:02:27.8]} 14. Ne3 {[%clk 0:01:30.4]} 14... Nxe3 {[%clk 0:02:27.1]} 15. Bxe3
{[%clk 0:01:31.3]} 15... Qxd1 {[%clk 0:02:18.4]} 16. Rfxd1 {[%clk 0:01:32.2]}
16... Be7 {[%clk 0:02:18.7]} 17. h3 {[%clk 0:01:24.7]} 17... Be4 {[%clk
0:02:14.9]} 18. Rac1 {[%clk 0:00:44.3]} 18... O-O {[%clk 0:02:14.2]} 19. Rxc8
{[%clk 0:00:36.9]} 19... Rxc8 {[%clk 0:02:13.6]} 20. Rd7 {[%clk 0:00:37.1]}
20... Kf8 {[%clk 0:02:08.9]} 21. Ng5 {[%clk 0:00:20.5]} 21... Bd5 {[%clk
0:02:06.1]} 22. Nxh7+ {[%clk 0:00:19.2]} 22... Ke8 {[%clk 0:02:06.1]} 23. Rxe7+
{[%clk 0:00:05.5]} 23... Kxe7 {[%clk 0:02:07]} 24. b3 {[%clk 0:00:04.6]} 24...
f6 {[%clk 0:02:04.9]} 25. exf6+ {[%clk 0:00:01.7]} 25... gxf6 {[%clk 0:02:05.8]}
0-1

[Event "Late-Titled-Tuesday-Blitz-April-30-2024"]
[Site "Chess.com"]
[Date "2024.04.30"]
[Round "11"]
[White "realburq"]
[Black "klercaku"]
[Result "0-1"]
[WhiteElo "2353"]
[BlackElo "2263"]
[TimeControl "180+1"]
[EndTime "16:02:25 PDT"]
[Termination "klercaku won by resignation"]

1. e4 {[%clk 0:02:42.9]} 1... e5 {[%clk 0:02:58.9]} 2. Nc3 {[%clk 0:02:41.4]}
2... Nc6 {[%clk 0:02:59.3]} 3. Bc4 {[%clk 0:02:40.8]} 3... Nf6 {[%clk
0:02:59.7]} 4. Nf3 {[%clk 0:02:40.4]} 4... Nxe4 {[%clk 0:02:58.7]} 5. Bxf7+
{[%clk 0:02:29.5]} 5... Kxf7 {[%clk 0:02:59.6]} 6. Nxe4 {[%clk 0:02:29.6]} 6...
d5 {[%clk 0:02:59.9]} 7. Neg5+ {[%clk 0:02:26.4]} 7... Kg8 {[%clk 0:03:00.3]} 8.
d4 {[%clk 0:02:26.5]} 8... h6 {[%clk 0:02:57.8]} 9. Nh3 {[%clk 0:02:17.3]} 9...
e4 {[%clk 0:02:57.4]} 10. Nfg1 {[%clk 0:02:14.4]} 10... Kh7 {[%clk 0:02:56.7]}
11. Nf4 {[%clk 0:02:12.1]} 11... Be7 {[%clk 0:02:48.1]} 12. Be3 {[%clk
0:02:10.2]} 12... Rf8 {[%clk 0:02:40.4]} 13. h4 {[%clk 0:02:09.6]} 13... Bf6
{[%clk 0:02:16.1]} 14. Nge2 {[%clk 0:02:01]} 14... Bg4 {[%clk 0:02:13.4]} 15.
Qd2 {[%clk 0:01:56.5]} 15... Bxh4 {[%clk 0:01:56.6]} 16. g3 {[%clk 0:01:52.3]}
16... Bg5 {[%clk 0:01:49.7]} 17. O-O-O {[%clk 0:01:43.9]} 17... Qd6 {[%clk
0:01:41.2]} 18. Kb1 {[%clk 0:01:40.9]} 18... Nd8 {[%clk 0:01:28.5]} 19. Nxd5
{[%clk 0:01:31.5]} 19... Qxd5 {[%clk 0:01:11.2]} 20. Bxg5 {[%clk 0:01:31.4]}
20... Bxe2 {[%clk 0:01:03.1]} 21. Bxh6 {[%clk 0:01:31.4]} 21... Bxd1 {[%clk
0:00:58.8]} 22. Bxg7+ {[%clk 0:01:15.2]} 22... Kxg7 {[%clk 0:00:54.5]} 23. Qh6+
{[%clk 0:01:14.9]} 23... Kf7 {[%clk 0:00:50.7]} 24. Rh5 {[%clk 0:01:08.5]} 24...
Qxh5 {[%clk 0:00:47.9]} 0-1

[Event "Late-Titled-Tuesday-Blitz-April-30-2024"]
[Site "Chess.com"]
[Date "2024.04.30"]
[Round "11"]
[White "HandKnit"]
[Black "GolfBeforeChess"]
[Result "1-0"]
[WhiteElo "2500"]
[BlackElo "2341"]
[TimeControl "180+1"]
[EndTime "16:02:36 PDT"]
[Termination "HandKnit won by resignation"]

1. c4 {[%clk 0:03:00.9]} 1... Nf6 {[%clk 0:03:00.3]} 2. Nf3 {[%clk 0:03:00.4]}
2... e6 {[%clk 0:03:00.5]} 3. g3 {[%clk 0:03:00.2]} 3... d5 {[%clk 0:03:00.5]}
4. Bg2 {[%clk 0:03:00.8]} 4... c6 {[%clk 0:03:00.8]} 5. b3 {[%clk 0:02:58.1]}
5... Be7 {[%clk 0:03:01.3]} 6. O-O {[%clk 0:02:57.3]} 6... O-O {[%clk
0:03:01.9]} 7. Bb2 {[%clk 0:02:57.7]} 7... Nbd7 {[%clk 0:03:02.5]} 8. d4 {[%clk
0:02:57.3]} 8... b6 {[%clk 0:03:02.8]} 9. Nc3 {[%clk 0:02:57]} 9... Bb7 {[%clk
0:03:03.1]} 10. Qc2 {[%clk 0:02:56]} 10... Rc8 {[%clk 0:03:03.1]} 11. e4 {[%clk
0:02:53.3]} 11... dxe4 {[%clk 0:03:03]} 12. Nxe4 {[%clk 0:02:54.2]} 12... c5
{[%clk 0:02:59.7]} 13. Nxf6+ {[%clk 0:02:52]} 13... Bxf6 {[%clk 0:02:57.7]} 14.
Rad1 {[%clk 0:02:49.9]} 14... Bxf3 {[%clk 0:02:53.2]} 15. Bxf3 {[%clk
0:02:48.7]} 15... cxd4 {[%clk 0:02:50.9]} 16. Bxd4 {[%clk 0:02:46.4]} 16... Qc7
{[%clk 0:02:47.1]} 17. Be3 {[%clk 0:02:28]} 17... Nc5 {[%clk 0:02:40.8]} 18. Rd2
{[%clk 0:02:20.7]} 18... Rfd8 {[%clk 0:02:39.3]} 19. Rfd1 {[%clk 0:02:20.8]}
19... Rxd2 {[%clk 0:02:38.5]} 20. Rxd2 {[%clk 0:02:21.7]} 20... Rd8 {[%clk
0:02:36.7]} 21. h4 {[%clk 0:02:19.1]} 21... Rd7 {[%clk 0:02:31.6]} 22. Rxd7
{[%clk 0:02:02.4]} 22... Qxd7 {[%clk 0:02:30.3]} 23. b4 {[%clk 0:02:02.6]} 23...
Nd3 {[%clk 0:02:03.6]} 24. Qd2 {[%clk 0:01:51.1]} 24... Ne5 {[%clk 0:02:03.3]}
25. Qxd7 {[%clk 0:01:49.5]} 25... Nxd7 {[%clk 0:02:03.3]} 26. c5 {[%clk
0:01:47.9]} 26... Be5 {[%clk 0:01:54.4]} 27. Bc6 {[%clk 0:01:42.3]} 27... Nb8
{[%clk 0:01:52.7]} 28. Bb7 {[%clk 0:01:39.1]} 28... Bc7 {[%clk 0:01:52.3]} 29.
Kf1 {[%clk 0:01:30.6]} 29... Nd7 {[%clk 0:01:49.9]} 30. Ke2 {[%clk 0:01:23.5]}
30... Kf8 {[%clk 0:01:43]} 31. Kd3 {[%clk 0:01:19.7]} 31... Ke7 {[%clk
0:01:42.5]} 32. Kc4 {[%clk 0:01:19.5]} 32... h6 {[%clk 0:01:34.8]} 33. Kb5
{[%clk 0:01:15.1]} 33... Bd8 {[%clk 0:01:25.5]} 34. a4 {[%clk 0:01:06.9]} 34...
f6 {[%clk 0:01:19.1]} 35. Ka6 {[%clk 0:01:02.1]} 1-0

[Event "Late-Titled-Tuesday-Blitz-April-30-2024"]
[Site "Chess.com"]
[Date "2024.04.30"]
[Round "11"]
[White "balack95"]
[Black "Kostukov_Alex"]
[Result "1-0"]
[WhiteElo "2498"]
[BlackElo "2372"]
[TimeControl "180+1"]
[EndTime "16:03:00 PDT"]
[Termination "balack95 won on time"]

1. Nf3 {[%clk 0:03:00.9]} 1... c5 {[%clk 0:02:56.7]} 2. c4 {[%clk 0:03:00.1]}
2... g6 {[%clk 0:02:56.8]} 3. g3 {[%clk 0:03:00.7]} 3... Bg7 {[%clk 0:02:57]} 4.
Bg2 {[%clk 0:03:01.6]} 4... Nf6 {[%clk 0:02:57.3]} 5. O-O {[%clk 0:03:02.5]}
5... Kf8 {[%clk 0:02:57.8]} 6. d4 {[%clk 0:03:01.7]} 6... cxd4 {[%clk
0:02:55.5]} 7. Nxd4 {[%clk 0:03:02.6]} 7... h6 {[%clk 0:02:45.1]} 8. Nc3 {[%clk
0:03:02.5]} 8... Kg8 {[%clk 0:02:45.2]} 9. e4 {[%clk 0:03:03]} 9... d6 {[%clk
0:02:43.2]} 10. h3 {[%clk 0:03:02.7]} 10... Kh7 {[%clk 0:02:43]} 11. Be3 {[%clk
0:03:03.4]} 11... Nc6 {[%clk 0:02:41.9]} 12. Rc1 {[%clk 0:02:59.1]} 12... Rf8
{[%clk 0:02:30.8]} 13. b3 {[%clk 0:02:56.4]} 13... Bd7 {[%clk 0:02:30.6]} 14. f4
{[%clk 0:02:56.3]} 14... Nxd4 {[%clk 0:02:22.7]} 15. Bxd4 {[%clk 0:02:57.2]}
15... Bc6 {[%clk 0:02:22.1]} 16. g4 {[%clk 0:02:45.6]} 16... Qa5 {[%clk
0:02:04.6]} 17. Rf2 {[%clk 0:02:43.5]} 17... e5 {[%clk 0:01:51.6]} 18. Be3
{[%clk 0:02:27.4]} 18... exf4 {[%clk 0:01:45.1]} 19. Bxf4 {[%clk 0:02:23.7]}
19... Rfd8 {[%clk 0:01:22.4]} 20. Nd5 {[%clk 0:02:22.1]} 20... Bxd5 {[%clk
0:01:06.7]} 21. exd5 {[%clk 0:02:21.6]} 21... Qb6 {[%clk 0:00:59.5]} 22. Qf3
{[%clk 0:02:20.3]} 22... Nd7 {[%clk 0:00:46.4]} 23. Kh2 {[%clk 0:02:09.9]} 23...
Be5 {[%clk 0:00:35.6]} 24. Re1 {[%clk 0:01:58.2]} 24... Qd4 {[%clk 0:00:25.5]}
25. Re4 {[%clk 0:01:52.2]} 25... Qa1 {[%clk 0:00:17.9]} 26. Bxe5 {[%clk
0:01:51.5]} 26... Nxe5 {[%clk 0:00:16.4]} 27. Qf6 {[%clk 0:01:52.2]} 27... Rd7
{[%clk 0:00:12.7]} 28. c5 {[%clk 0:01:44.4]} 28... Re8 {[%clk 0:00:09.3]} 29. c6
{[%clk 0:01:43.2]} 29... Rc7 {[%clk 0:00:07.7]} 30. Qxd6 {[%clk 0:01:40]} 30...
Rce7 {[%clk 0:00:00.5]} 31. Rxf7+ {[%clk 0:01:31.5]} 1-0

[Event "Late-Titled-Tuesday-Blitz-April-30-2024"]
[Site "Chess.com"]
[Date "2024.04.30"]
[Round "11"]
[White "JiangoFett"]
[Black "Mikhail_Golubev"]
[Result "1-0"]
[WhiteElo "2492"]
[BlackElo "2585"]
[TimeControl "180+1"]
[EndTime "16:03:20 PDT"]
[Termination "JiangoFett won on time"]

1. c4 {[%clk 0:03:00.9]} 1... g6 {[%clk 0:02:59.6]} 2. d4 {[%clk 0:02:59.3]}
2... Bg7 {[%clk 0:02:59.9]} 3. e4 {[%clk 0:02:59.4]} 3... d6 {[%clk 0:03:00.1]}
4. Ne2 {[%clk 0:02:59.5]} 4... Nf6 {[%clk 0:02:58.1]} 5. Nbc3 {[%clk 0:02:59.3]}
5... Nbd7 {[%clk 0:02:56.9]} 6. f3 {[%clk 0:02:58.5]} 6... O-O {[%clk 0:02:55]}
7. Be3 {[%clk 0:02:59.1]} 7... a6 {[%clk 0:02:55]} 8. Qd2 {[%clk 0:02:58.2]}
8... b5 {[%clk 0:02:53.5]} 9. cxb5 {[%clk 0:02:59.1]} 9... axb5 {[%clk
0:02:53.5]} 10. Nxb5 {[%clk 0:02:53.9]} 10... c6 {[%clk 0:02:52.3]} 11. Nbc3
{[%clk 0:02:50.6]} 11... e5 {[%clk 0:02:52.4]} 12. dxe5 {[%clk 0:02:36.1]} 12...
Nxe5 {[%clk 0:02:51.5]} 13. Nd4 {[%clk 0:02:33.5]} 13... d5 {[%clk 0:02:49.6]}
14. exd5 {[%clk 0:01:58.1]} 14... Nxd5 {[%clk 0:02:43.7]} 15. Nxd5 {[%clk
0:01:57.5]} 15... cxd5 {[%clk 0:02:38.9]} 16. Be2 {[%clk 0:01:54.3]} 16... Ba6
{[%clk 0:01:20.9]} 17. O-O {[%clk 0:01:53.2]} 17... Bxe2 {[%clk 0:01:20.7]} 18.
Qxe2 {[%clk 0:01:47.5]} 18... Nc4 {[%clk 0:01:20.2]} 19. Bf2 {[%clk 0:01:44.3]}
19... Re8 {[%clk 0:01:20.4]} 20. Qd3 {[%clk 0:01:29.1]} 20... Nxb2 {[%clk
0:01:18.7]} 21. Qb3 {[%clk 0:01:27.9]} 21... Nc4 {[%clk 0:01:09.7]} 22. Rad1
{[%clk 0:01:28.1]} 22... Ra3 {[%clk 0:01:05.6]} 23. Qb5 {[%clk 0:01:18]} 23...
Rxa2 {[%clk 0:00:34.8]} 24. Nc6 {[%clk 0:01:17.3]} 24... Qf6 {[%clk 0:00:10.8]}
25. Nb4 {[%clk 0:01:12.8]} 25... Rxf2 {[%clk 0:00:06]} 26. Qxe8+ {[%clk
0:01:12.1]} 26... Bf8 {[%clk 0:00:05.5]} 27. Rxf2 {[%clk 0:01:08.2]} 27... Ne3
{[%clk 0:00:04.5]} 28. Nxd5 {[%clk 0:01:04]} 1-0

[Event "Late-Titled-Tuesday-Blitz-April-30-2024"]
[Site "Chess.com"]
[Date "2024.04.30"]
[Round "11"]
[White "kylelancman"]
[Black "Rodalquilar"]
[Result "0-1"]
[WhiteElo "2506"]
[BlackElo "2679"]
[TimeControl "180+1"]
[EndTime "16:03:25 PDT"]
[Termination "Rodalquilar won by resignation"]

1. e4 {[%clk 0:03:00.9]} 1... d5 {[%clk 0:03:00.2]} 2. exd5 {[%clk 0:02:58.6]}
2... Qxd5 {[%clk 0:03:01.1]} 3. Nc3 {[%clk 0:02:58.8]} 3... Qa5 {[%clk
0:03:01.2]} 4. d4 {[%clk 0:02:58.3]} 4... Nf6 {[%clk 0:03:01.6]} 5. Bc4 {[%clk
0:02:55.9]} 5... Bg4 {[%clk 0:03:01.3]} 6. f3 {[%clk 0:02:51.9]} 6... Bd7 {[%clk
0:03:01.2]} 7. Ne2 {[%clk 0:02:51.7]} 7... e6 {[%clk 0:03:00.6]} 8. Bf4 {[%clk
0:02:51.5]} 8... Bd6 {[%clk 0:02:57.6]} 9. Bxd6 {[%clk 0:02:50.2]} 9... cxd6
{[%clk 0:02:57.8]} 10. Qd2 {[%clk 0:02:42.4]} 10... d5 {[%clk 0:02:50.4]} 11.
Bd3 {[%clk 0:02:36.6]} 11... Nc6 {[%clk 0:02:50.7]} 12. Nb5 {[%clk 0:02:32.3]}
12... Qxd2+ {[%clk 0:02:49.6]} 13. Kxd2 {[%clk 0:02:33]} 13... Ke7 {[%clk
0:02:50.1]} 14. c3 {[%clk 0:02:30.5]} 14... h5 {[%clk 0:02:41.2]} 15. h4 {[%clk
0:02:28.9]} 15... Rhc8 {[%clk 0:02:38.1]} 16. Na3 {[%clk 0:02:20.7]} 16... a6
{[%clk 0:02:32.7]} 17. Nc2 {[%clk 0:02:19.3]} 17... Na5 {[%clk 0:02:24.4]} 18.
b3 {[%clk 0:02:05.1]} 18... Rc7 {[%clk 0:02:23.9]} 19. Rac1 {[%clk 0:01:57.6]}
19... Rac8 {[%clk 0:02:24.1]} 20. Ne3 {[%clk 0:01:55.1]} 20... b5 {[%clk
0:02:10.8]} 21. Nf4 {[%clk 0:01:46]} 21... Nb7 {[%clk 0:02:06.8]} 22. Rhe1
{[%clk 0:01:38.5]} 22... Kf8 {[%clk 0:02:05.1]} 23. Rc2 {[%clk 0:01:31.9]} 23...
Nd6 {[%clk 0:02:05.2]} 24. Rec1 {[%clk 0:01:27.7]} 24... a5 {[%clk 0:02:05.2]}
25. g4 {[%clk 0:01:14.5]} 25... hxg4 {[%clk 0:02:04.6]} 26. Nxg4 {[%clk
0:01:13.9]} 26... Ke7 {[%clk 0:01:49.9]} 27. Nxf6 {[%clk 0:01:09]} 27... gxf6
{[%clk 0:01:49.9]} 28. Re1 {[%clk 0:01:04.5]} 28... Bc6 {[%clk 0:01:49.3]} 29.
h5 {[%clk 0:01:03.2]} 29... Rh8 {[%clk 0:01:49.4]} 30. Rg1 {[%clk 0:01:02.6]}
30... e5 {[%clk 0:01:47.4]} 31. Re1 {[%clk 0:00:56.9]} 31... a4 {[%clk
0:01:13.5]} 32. dxe5 {[%clk 0:00:55.6]} 32... fxe5 {[%clk 0:01:14]} 33. Rxe5+
{[%clk 0:00:55.8]} 33... Kf6 {[%clk 0:01:14.6]} 34. Rxd5 {[%clk 0:00:53.5]}
34... Rd8 {[%clk 0:01:14.4]} 35. h6 {[%clk 0:00:41.4]} 35... Rcc8 {[%clk
0:01:12.4]} 36. Rh5 {[%clk 0:00:39.9]} 36... Bxf3 {[%clk 0:01:10.4]} 37. Rh3
{[%clk 0:00:38]} 37... Bg4 {[%clk 0:01:10.8]} 38. Rh4 {[%clk 0:00:36.3]} 38...
Bf5 {[%clk 0:01:05.1]} 39. Ke3 {[%clk 0:00:32.4]} 39... Bxd3 {[%clk 0:01:00.8]}
40. Nxd3 {[%clk 0:00:31]} 40... Nf5+ {[%clk 0:01:01.2]} 0-1

[Event "Late-Titled-Tuesday-Blitz-April-30-2024"]
[Site "Chess.com"]
[Date "2024.04.30"]
[Round "11"]
[White "Zhigalko_Sergei"]
[Black "Bryanl106"]
[Result "1-0"]
[WhiteElo "2877"]
[BlackElo "2688"]
[TimeControl "180+1"]
[EndTime "16:03:31 PDT"]
[Termination "Zhigalko_Sergei won by resignation"]

1. e4 {[%clk 0:03:00.9]} 1... e5 {[%clk 0:02:59]} 2. Nf3 {[%clk 0:02:59.2]} 2...
Nc6 {[%clk 0:02:59.4]} 3. Bc4 {[%clk 0:02:58.6]} 3... Nf6 {[%clk 0:02:58.4]} 4.
d3 {[%clk 0:02:58.8]} 4... Bc5 {[%clk 0:02:58.6]} 5. O-O {[%clk 0:02:58.8]} 5...
d6 {[%clk 0:02:58.2]} 6. Nbd2 {[%clk 0:02:59.3]} 6... O-O {[%clk 0:02:57.3]} 7.
c3 {[%clk 0:02:59.6]} 7... a5 {[%clk 0:02:57.3]} 8. h3 {[%clk 0:02:59]} 8... h6
{[%clk 0:02:57.7]} 9. Re1 {[%clk 0:02:59.3]} 9... Re8 {[%clk 0:02:57.6]} 10. Nf1
{[%clk 0:02:59.2]} 10... Be6 {[%clk 0:02:57.3]} 11. Bb5 {[%clk 0:02:59.7]} 11...
Bb6 {[%clk 0:02:53.2]} 12. Ng3 {[%clk 0:02:54.4]} 12... Bd7 {[%clk 0:02:53.2]}
13. Ba4 {[%clk 0:02:51.3]} 13... Ne7 {[%clk 0:02:46.3]} 14. Bc2 {[%clk
0:02:45.6]} 14... Ng6 {[%clk 0:02:46.2]} 15. d4 {[%clk 0:02:46]} 15... Bc6
{[%clk 0:02:41.8]} 16. Be3 {[%clk 0:02:31.1]} 16... d5 {[%clk 0:02:30.4]} 17.
exd5 {[%clk 0:02:16.9]} 17... Nxd5 {[%clk 0:02:24.2]} 18. Bxg6 {[%clk
0:02:15.8]} 18... exd4 {[%clk 0:02:12.2]} 19. Bxf7+ {[%clk 0:02:11.7]} 19...
Kxf7 {[%clk 0:02:13.1]} 20. Bxd4 {[%clk 0:02:11.9]} 20... Rxe1+ {[%clk
0:02:10.2]} 21. Qxe1 {[%clk 0:02:11.9]} 21... Bxd4 {[%clk 0:02:11.1]} 22. Nxd4
{[%clk 0:02:11.4]} 22... Qd7 {[%clk 0:02:10.3]} 23. Rd1 {[%clk 0:01:59]} 23...
Re8 {[%clk 0:02:09.1]} 24. Qd2 {[%clk 0:01:59.1]} 24... Nf6 {[%clk 0:02:09.2]}
25. Nxc6 {[%clk 0:01:46.3]} 25... Qxc6 {[%clk 0:02:10.1]} 26. Qf4 {[%clk
0:01:38.2]} 26... Kg8 {[%clk 0:02:02.7]} 27. Nf5 {[%clk 0:01:37.1]} 27... Qe4
{[%clk 0:01:26.4]} 28. Nxh6+ {[%clk 0:01:14.6]} 28... Kh7 {[%clk 0:01:25.5]} 29.
Qxe4+ {[%clk 0:01:03.5]} 29... Rxe4 {[%clk 0:01:26.4]} 30. Ng4 {[%clk
0:00:31.7]} 30... Nxg4 {[%clk 0:01:25.7]} 31. hxg4 {[%clk 0:00:32.6]} 31... Rxg4
{[%clk 0:01:26.5]} 32. Rd7 {[%clk 0:00:26.6]} 32... Rc4 {[%clk 0:01:27]} 33. Kf1
{[%clk 0:00:25.3]} 33... a4 {[%clk 0:01:27.3]} 34. Rd4 {[%clk 0:00:21.5]} 34...
Rxd4 {[%clk 0:01:20.3]} 35. cxd4 {[%clk 0:00:21.2]} 35... Kg6 {[%clk 0:01:21.2]}
36. Ke2 {[%clk 0:00:20.3]} 36... Kf5 {[%clk 0:01:22.1]} 37. Ke3 {[%clk
0:00:19.3]} 37... g5 {[%clk 0:01:22.1]} 38. f3 {[%clk 0:00:19]} 38... c6 {[%clk
0:01:20.8]} 39. g4+ {[%clk 0:00:18.4]} 39... Kf6 {[%clk 0:01:19.6]} 40. f4
{[%clk 0:00:17.3]} 40... b5 {[%clk 0:01:15.1]} 41. f5 {[%clk 0:00:14.6]} 41...
Kf7 {[%clk 0:01:14.5]} 42. a3 {[%clk 0:00:13.7]} 42... Ke7 {[%clk 0:01:13.7]}
43. Kd3 {[%clk 0:00:13.7]} 1-0

[Event "Late-Titled-Tuesday-Blitz-April-30-2024"]
[Site "Chess.com"]
[Date "2024.04.30"]
[Round "11"]
[White "Binary010"]
[Black "CrushingKings"]
[Result "1-0"]
[WhiteElo "2892"]
[BlackElo "2631"]
[TimeControl "180+1"]
[EndTime "16:03:35 PDT"]
[Termination "Binary010 won by resignation"]

1. d4 {[%clk 0:03:00.9]} 1... g6 {[%clk 0:02:56.7]} 2. e4 {[%clk 0:03:00.5]}
2... Bg7 {[%clk 0:02:57.2]} 3. Nc3 {[%clk 0:03:01]} 3... c6 {[%clk 0:02:57.6]}
4. f4 {[%clk 0:03:01.2]} 4... d5 {[%clk 0:02:58.1]} 5. e5 {[%clk 0:03:01.6]}
5... Nh6 {[%clk 0:02:58.4]} 6. Nf3 {[%clk 0:03:00.6]} 6... f6 {[%clk 0:02:58.5]}
7. Be3 {[%clk 0:02:57.2]} 7... Bg4 {[%clk 0:02:57.2]} 8. h3 {[%clk 0:02:53.8]}
8... Bxf3 {[%clk 0:02:57.4]} 9. Qxf3 {[%clk 0:02:54.6]} 9... O-O {[%clk
0:02:56.1]} 10. exf6 {[%clk 0:02:41.7]} 10... Rxf6 {[%clk 0:02:55.8]} 11. O-O-O
{[%clk 0:02:41.2]} 11... Qd6 {[%clk 0:02:49.5]} 12. g4 {[%clk 0:02:36]} 12...
Rf7 {[%clk 0:02:49.2]} 13. Kb1 {[%clk 0:02:33.4]} 13... Nd7 {[%clk 0:02:49]} 14.
h4 {[%clk 0:02:28.8]} 14... Raf8 {[%clk 0:02:46.4]} 15. Qe2 {[%clk 0:02:18.8]}
15... Nb6 {[%clk 0:01:52]} 16. h5 {[%clk 0:02:16.6]} 16... Nc4 {[%clk
0:01:49.4]} 17. Bc1 {[%clk 0:02:16]} 17... Qb4 {[%clk 0:01:30.5]} 18. hxg6
{[%clk 0:01:29.9]} 18... hxg6 {[%clk 0:01:30.2]} 19. g5 {[%clk 0:01:25.9]} 19...
Ng4 {[%clk 0:01:18.4]} 20. Bh3 {[%clk 0:01:00.3]} 20... Nge3 {[%clk 0:00:45.3]}
21. Rd2 {[%clk 0:00:55]} 21... Bxd4 {[%clk 0:00:38.1]} 22. Qd3 {[%clk
0:00:12.7]} 22... Kg7 {[%clk 0:00:26.4]} 23. Qxd4+ {[%clk 0:00:11.1]} 1-0

[Event "Late-Titled-Tuesday-Blitz-April-30-2024"]
[Site "Chess.com"]
[Date "2024.04.30"]
[Round "11"]
[White "luggevoila"]
[Black "shirovin"]
[Result "1-0"]
[WhiteElo "2317"]
[BlackElo "2076"]
[TimeControl "180+1"]
[EndTime "16:03:35 PDT"]
[Termination "luggevoila won on time"]

1. e4 {[%clk 0:03:00.9]} 1... c5 {[%clk 0:02:58.4]} 2. Nf3 {[%clk 0:03:01.1]}
2... d6 {[%clk 0:02:58.8]} 3. c3 {[%clk 0:03:01.3]} 3... Nf6 {[%clk 0:02:57.9]}
4. Be2 {[%clk 0:03:01.9]} 4... e5 {[%clk 0:02:56.1]} 5. O-O {[%clk 0:03:01.1]}
5... Be7 {[%clk 0:02:56.1]} 6. d4 {[%clk 0:03:00]} 6... exd4 {[%clk 0:02:41.7]}
7. cxd4 {[%clk 0:02:56.8]} 7... Nxe4 {[%clk 0:02:41.2]} 8. Re1 {[%clk 0:02:39]}
8... O-O {[%clk 0:02:38.7]} 9. Bd3 {[%clk 0:02:39.1]} 9... Nf6 {[%clk
0:02:38.3]} 10. Nc3 {[%clk 0:02:35.1]} 10... Nc6 {[%clk 0:02:32.9]} 11. h3
{[%clk 0:02:16]} 11... Nb4 {[%clk 0:02:16.3]} 12. Bb1 {[%clk 0:02:10.5]} 12...
b6 {[%clk 0:02:11.6]} 13. a3 {[%clk 0:02:08]} 13... Nc6 {[%clk 0:02:09.5]} 14.
d5 {[%clk 0:02:08]} 14... Na5 {[%clk 0:02:08.4]} 15. b4 {[%clk 0:02:03.7]} 15...
Nb7 {[%clk 0:01:59]} 16. Bg5 {[%clk 0:01:50.5]} 16... h6 {[%clk 0:01:54.6]} 17.
Bh4 {[%clk 0:01:49.7]} 17... Nxd5 {[%clk 0:01:45.7]} 18. Rxe7 {[%clk 0:01:08]}
18... Nxe7 {[%clk 0:01:34.6]} 19. Nd5 {[%clk 0:01:07.7]} 19... f6 {[%clk
0:01:33.8]} 20. Qd3 {[%clk 0:01:06.9]} 20... Nxd5 {[%clk 0:00:54.5]} 21. Qxd5+
{[%clk 0:00:58.4]} 21... Rf7 {[%clk 0:00:51.3]} 22. Bg6 {[%clk 0:00:54.8]} 22...
Qf8 {[%clk 0:00:43.2]} 23. Re1 {[%clk 0:00:48]} 23... Rb8 {[%clk 0:00:35.3]} 24.
Bxf7+ {[%clk 0:00:41.9]} 24... Qxf7 {[%clk 0:00:19.5]} 25. Re8+ {[%clk
0:00:41.4]} 1-0

[Event "Late-Titled-Tuesday-Blitz-April-30-2024"]
[Site "Chess.com"]
[Date "2024.04.30"]
[Round "11"]
[White "shimastream"]
[Black "superchess02"]
[Result "1-0"]
[WhiteElo "3039"]
[BlackElo "2874"]
[TimeControl "180+1"]
[EndTime "16:03:37 PDT"]
[Termination "shimastream won by resignation"]

1. b3 {[%clk 0:03:00.7]} 1... d5 {[%clk 0:02:59.3]} 2. Bb2 {[%clk 0:02:40.1]}
2... c5 {[%clk 0:02:59.1]} 3. e3 {[%clk 0:02:27.4]} 3... a6 {[%clk 0:02:59.6]}
4. Nf3 {[%clk 0:02:27.6]} 4... Nc6 {[%clk 0:02:59.9]} 5. d4 {[%clk 0:02:27.8]}
5... Nf6 {[%clk 0:02:59.2]} 6. dxc5 {[%clk 0:02:26]} 6... Bg4 {[%clk 0:02:56.4]}
7. a3 {[%clk 0:02:25.3]} 7... e5 {[%clk 0:02:51.7]} 8. Be2 {[%clk 0:02:16.9]}
8... Bxf3 {[%clk 0:02:45.4]} 9. Bxf3 {[%clk 0:02:13.6]} 9... Bxc5 {[%clk
0:02:46]} 10. b4 {[%clk 0:02:11.1]} 10... Ba7 {[%clk 0:02:40.7]} 11. c4 {[%clk
0:02:03.8]} 11... e4 {[%clk 0:02:03.1]} 12. Be2 {[%clk 0:02:00.2]} 12... d4
{[%clk 0:01:51.3]} 13. exd4 {[%clk 0:01:51.8]} 13... Bxd4 {[%clk 0:01:52.2]} 14.
Nc3 {[%clk 0:01:49.3]} 14... e3 {[%clk 0:01:14.7]} 15. fxe3 {[%clk 0:01:40.2]}
15... Bxe3 {[%clk 0:01:15.6]} 16. Nd5 {[%clk 0:01:40]} 16... Nxd5 {[%clk
0:01:13.5]} 17. cxd5 {[%clk 0:01:40.1]} 17... Nd4 {[%clk 0:01:12.6]} 18. Qd3
{[%clk 0:01:36.7]} 18... Qe7 {[%clk 0:01:01.5]} 19. d6 {[%clk 0:01:20.6]} 19...
Qe5 {[%clk 0:00:50.2]} 20. Rd1 {[%clk 0:01:15.8]} 20... Qf4 {[%clk 0:00:34.3]}
21. Rf1 {[%clk 0:00:59.6]} 21... Qh4+ {[%clk 0:00:20.6]} 22. g3 {[%clk
0:00:44.7]} 22... Qxh2 {[%clk 0:00:20.5]} 23. Qxe3+ {[%clk 0:00:44.3]} 23... Ne6
{[%clk 0:00:21.2]} 24. d7+ {[%clk 0:00:42]} 24... Ke7 {[%clk 0:00:19.9]} 25.
Bxg7 {[%clk 0:00:40.1]} 25... Rhg8 {[%clk 0:00:16.8]} 26. Bf6+ {[%clk
0:00:40.3]} 26... Kf8 {[%clk 0:00:17.5]} 27. d8=Q+ {[%clk 0:00:36.5]} 27... Rxd8
{[%clk 0:00:17.5]} 28. Rxd8+ {[%clk 0:00:36.7]} 1-0